[Event "Early-Titled-Tuesday-Blitz-October-17-2023"]
[Site "Chess.com"]
[Date "2023.10.17"]
[Round "10"]
[White "Anton_Demchenko"]
[Black "Russian_berezka"]
[Result "1/2-1/2"]
[WhiteElo "2994"]
[BlackElo "2688"]
[TimeControl "180+1"]
[EndTime "10:01:10 PDT"]
[Termination "Game drawn by repetition"]

1. e4 {[%clk 0:03:00.9]} 1... e5 {[%clk 0:02:59.6]} 2. Nf3 {[%clk 0:03:01.1]}
2... Nc6 {[%clk 0:03:00.3]} 3. Bc4 {[%clk 0:03:00.9]} 3... Bc5 {[%clk
0:03:00.2]} 4. d3 {[%clk 0:03:01.3]} 4... Nf6 {[%clk 0:02:59.9]} 5. Bg5 {[%clk
0:03:01.8]} 5... d6 {[%clk 0:02:56.7]} 6. c3 {[%clk 0:03:01.5]} 6... h6 {[%clk
0:02:54.9]} 7. Bh4 {[%clk 0:03:02.1]} 7... a6 {[%clk 0:02:53]} 8. Nbd2 {[%clk
0:03:02]} 8... g5 {[%clk 0:02:52.4]} 9. Bg3 {[%clk 0:03:01.9]} 9... Ba7 {[%clk
0:02:53.1]} 10. O-O {[%clk 0:03:00.4]} 10... Qe7 {[%clk 0:02:51.3]} 11. Kh1
{[%clk 0:02:59.2]} 11... Nh7 {[%clk 0:02:40.5]} 12. d4 {[%clk 0:02:55.5]} 12...
Nf8 {[%clk 0:02:40]} 13. Bd5 {[%clk 0:02:49.3]} 13... Ng6 {[%clk 0:02:34.7]} 14.
Nc4 {[%clk 0:02:49.1]} 14... g4 {[%clk 0:02:27.1]} 15. Nfd2 {[%clk 0:02:35.6]}
15... h5 {[%clk 0:02:21.4]} 16. f3 {[%clk 0:02:03.3]} 16... h4 {[%clk
0:02:20.5]} 17. Be1 {[%clk 0:02:03.9]} 17... g3 {[%clk 0:02:13.7]} 18. f4 {[%clk
0:01:22.1]} 18... Nxf4 {[%clk 0:01:35.8]} 19. Rxf4 {[%clk 0:01:19.9]} 19... exf4
{[%clk 0:01:36.7]} 20. h3 {[%clk 0:01:10.3]} 20... Be6 {[%clk 0:01:15.9]} 21.
Qf3 {[%clk 0:00:59]} 21... Qg5 {[%clk 0:01:10.9]} 22. Bxc6+ {[%clk 0:00:40.6]}
22... bxc6 {[%clk 0:01:08.9]} 23. Qf1 {[%clk 0:00:41.2]} 23... Ke7 {[%clk
0:00:40.8]} 24. Nf3 {[%clk 0:00:38.7]} 24... Qb5 {[%clk 0:00:40.2]} 25. b3
{[%clk 0:00:39.3]} 25... d5 {[%clk 0:00:36.4]} 26. exd5 {[%clk 0:00:29.7]} 26...
cxd5 {[%clk 0:00:33.8]} 27. a4 {[%clk 0:00:30.3]} 27... Qxb3 {[%clk 0:00:30.9]}
28. Nce5 {[%clk 0:00:31]} 28... c5 {[%clk 0:00:25.7]} 29. Bd2 {[%clk 0:00:31]}
29... cxd4 {[%clk 0:00:21.7]} 30. Nc6+ {[%clk 0:00:31.4]} 30... Kf8 {[%clk
0:00:18]} 31. Nfxd4 {[%clk 0:00:31.7]} 31... Qc4 {[%clk 0:00:17.6]} 32. Qxf4
{[%clk 0:00:31.5]} 32... Bxd4 {[%clk 0:00:17.1]} 33. Nxd4 {[%clk 0:00:31.4]}
33... Re8 {[%clk 0:00:11.1]} 34. Rf1 {[%clk 0:00:31.2]} 34... Rh7 {[%clk
0:00:08.2]} 35. Kg1 {[%clk 0:00:29]} 35... Qd3 {[%clk 0:00:06.9]} 36. Qf6 {[%clk
0:00:28.5]} 36... Kg8 {[%clk 0:00:05.6]} 37. Bf4 {[%clk 0:00:24.4]} 37... Qg6
{[%clk 0:00:05.5]} 38. Qe5 {[%clk 0:00:21.3]} 38... Qe4 {[%clk 0:00:06]} 39. Qd6
{[%clk 0:00:18.7]} 39... Rg7 {[%clk 0:00:05.2]} 40. Bh6 {[%clk 0:00:11.8]} 40...
Rg6 {[%clk 0:00:05.1]} 41. Bd2 {[%clk 0:00:12.5]} 41... Bxh3 {[%clk 0:00:04.2]}
42. Qxg6+ {[%clk 0:00:05.6]} 42... fxg6 {[%clk 0:00:04.4]} 43. gxh3 {[%clk
0:00:06.3]} 43... Rf8 {[%clk 0:00:04.7]} 44. Re1 {[%clk 0:00:05.9]} 44... Qd3
{[%clk 0:00:04.6]} 45. Bg5 {[%clk 0:00:02.4]} 45... Qxc3 {[%clk 0:00:04.4]} 46.
Rd1 {[%clk 0:00:02]} 46... Re8 {[%clk 0:00:02.2]} 47. Bxh4 {[%clk 0:00:02.1]}
47... g2 {[%clk 0:00:02.1]} 48. Bf2 {[%clk 0:00:02]} 48... Re4 {[%clk 0:00:02]}
49. Kxg2 {[%clk 0:00:02.2]} 49... Rf4 {[%clk 0:00:02]} 50. Rf1 {[%clk
0:00:02.5]} 50... Qd2 {[%clk 0:00:01.4]} 51. Nf3 {[%clk 0:00:02.6]} 51... Qe2
{[%clk 0:00:01.4]} 52. Nh2 {[%clk 0:00:03.4]} 52... Qe4+ {[%clk 0:00:01.8]} 53.
Kg3 {[%clk 0:00:03.4]} 53... Rf5 {[%clk 0:00:01.8]} 54. Ng4 {[%clk 0:00:03.9]}
54... Qf4+ {[%clk 0:00:02.3]} 55. Kg2 {[%clk 0:00:04.8]} 55... Qe4+ {[%clk
0:00:03.2]} 56. Kg3 {[%clk 0:00:05.1]} 56... Kg7 {[%clk 0:00:03.5]} 57. Re1
{[%clk 0:00:04.5]} 57... Qf3+ {[%clk 0:00:03.4]} 58. Kh2 {[%clk 0:00:05.1]}
58... Qxf2+ {[%clk 0:00:03.7]} 59. Nxf2 {[%clk 0:00:04]} 59... Rxf2+ {[%clk
0:00:04.6]} 60. Kg3 {[%clk 0:00:04.8]} 60... Ra2 {[%clk 0:00:05.3]} 61. Re5
{[%clk 0:00:04.8]} 61... Rxa4 {[%clk 0:00:05.2]} 62. Rxd5 {[%clk 0:00:05.2]}
62... Ra3+ {[%clk 0:00:06.1]} 63. Kg4 {[%clk 0:00:05.3]} 63... Kh6 {[%clk
0:00:07]} 64. Rd8 {[%clk 0:00:05.2]} 64... a5 {[%clk 0:00:07.6]} 65. Rh8+ {[%clk
0:00:05.2]} 65... Kg7 {[%clk 0:00:07.7]} 66. Ra8 {[%clk 0:00:06.1]} 66... Ra1
{[%clk 0:00:07.8]} 67. Ra7+ {[%clk 0:00:05.4]} 67... Kh6 {[%clk 0:00:07.6]} 68.
h4 {[%clk 0:00:04.6]} 68... a4 {[%clk 0:00:07.9]} 69. Ra6 {[%clk 0:00:05.4]}
69... Kg7 {[%clk 0:00:06.9]} 70. Kg5 {[%clk 0:00:04.1]} 70... Rg1+ {[%clk
0:00:06.3]} 71. Kf4 {[%clk 0:00:04.7]} 71... Rh1 {[%clk 0:00:06]} 72. Kg4 {[%clk
0:00:03.4]} 72... Rg1+ {[%clk 0:00:05.7]} 73. Kf4 {[%clk 0:00:03.9]} 73... Rf1+
{[%clk 0:00:06]} 74. Kg4 {[%clk 0:00:04.3]} 74... Ra1 {[%clk 0:00:04.6]} 75. Kg5
{[%clk 0:00:04.7]} 75... Rg1+ {[%clk 0:00:03.3]} 76. Kf4 {[%clk 0:00:04.5]}
1/2-1/2

[Event "Early-Titled-Tuesday-Blitz-October-17-2023"]
[Site "Chess.com"]
[Date "2023.10.17"]
[Round "10"]
[White "GlavkonVVS"]
[Black "esrosenberg"]
[Result "0-1"]
[WhiteElo "2563"]
[BlackElo "2434"]
[TimeControl "180+1"]
[EndTime "10:01:25 PDT"]
[Termination "esrosenberg won by resignation"]

1. Nf3 {[%clk 0:03:00.9]} 1... d5 {[%clk 0:02:59.9]} 2. g3 {[%clk 0:02:59.6]}
2... Nd7 {[%clk 0:03:00.1]} 3. Bg2 {[%clk 0:03:00.2]} 3... e5 {[%clk 0:03:00.6]}
4. d3 {[%clk 0:03:00.8]} 4... Ngf6 {[%clk 0:03:00.3]} 5. O-O {[%clk 0:03:01]}
5... Bd6 {[%clk 0:03:00.9]} 6. c4 {[%clk 0:03:01.2]} 6... c6 {[%clk 0:03:01.2]}
7. a3 {[%clk 0:02:57.6]} 7... a5 {[%clk 0:02:59]} 8. Nbd2 {[%clk 0:02:53.6]}
8... O-O {[%clk 0:02:58.2]} 9. b3 {[%clk 0:02:51.7]} 9... Re8 {[%clk 0:02:55.9]}
10. Bb2 {[%clk 0:02:50.4]} 10... e4 {[%clk 0:02:54.4]} 11. dxe4 {[%clk
0:02:50.5]} 11... dxe4 {[%clk 0:02:54.7]} 12. Nd4 {[%clk 0:02:51.2]} 12... e3
{[%clk 0:02:55]} 13. fxe3 {[%clk 0:02:51.7]} 13... Nc5 {[%clk 0:02:51.7]} 14. e4
{[%clk 0:02:25.6]} 14... Nfxe4 {[%clk 0:02:47.9]} 15. Nxe4 {[%clk 0:02:25.6]}
15... Nxe4 {[%clk 0:02:48.8]} 16. Qc2 {[%clk 0:02:17.8]} 16... Bc5 {[%clk
0:02:17.2]} 17. Rad1 {[%clk 0:02:16.8]} 17... Ng5 {[%clk 0:02:09.5]} 18. h4
{[%clk 0:02:11.2]} 18... Ne6 {[%clk 0:02:03.7]} 19. e3 {[%clk 0:02:11.2]} 19...
Nxd4 {[%clk 0:01:39.7]} 20. exd4 {[%clk 0:01:55]} 20... Bd6 {[%clk 0:01:39.9]}
21. Qf2 {[%clk 0:01:53.1]} 21... Qc7 {[%clk 0:01:36.1]} 22. Rd3 {[%clk
0:01:47.6]} 22... Bg4 {[%clk 0:01:34.2]} 23. Re1 {[%clk 0:01:40.1]} 23... h5
{[%clk 0:01:27.5]} 24. Rde3 {[%clk 0:01:29.9]} 24... Rxe3 {[%clk 0:01:24.7]} 25.
Rxe3 {[%clk 0:01:29.9]} 25... Rf8 {[%clk 0:01:09.3]} 26. Kh2 {[%clk 0:01:26.3]}
26... Be7 {[%clk 0:01:02]} 27. Kg1 {[%clk 0:01:14.8]} 27... Bf6 {[%clk
0:00:59.5]} 28. d5 {[%clk 0:00:56.8]} 28... Bxb2 {[%clk 0:00:58.5]} 29. Qxb2
{[%clk 0:00:55.3]} 29... cxd5 {[%clk 0:00:57.3]} 30. Bxd5 {[%clk 0:00:54.9]}
30... Qc5 {[%clk 0:00:55.9]} 31. Qc1 {[%clk 0:00:43.2]} 31... Re8 {[%clk
0:00:51.3]} 32. Kf2 {[%clk 0:00:43.4]} 32... b5 {[%clk 0:00:45]} 33. b4 {[%clk
0:00:40.4]} 33... axb4 {[%clk 0:00:40.6]} 34. axb4 {[%clk 0:00:40.4]} 34... Qc8
{[%clk 0:00:29.3]} 35. c5 {[%clk 0:00:32.5]} 35... Qf5+ {[%clk 0:00:25.6]} 36.
Bf3 {[%clk 0:00:32.6]} 36... Ra8 {[%clk 0:00:23.7]} 37. Qd2 {[%clk 0:00:28.2]}
37... Ra1 {[%clk 0:00:20.5]} 38. Qd8+ {[%clk 0:00:17.6]} 38... Kh7 {[%clk
0:00:20.4]} 39. Qd3 {[%clk 0:00:18.2]} 39... Ra2+ {[%clk 0:00:18.5]} 40. Kg1
{[%clk 0:00:18.3]} 40... Rb2 {[%clk 0:00:15.4]} 41. Qxf5+ {[%clk 0:00:18.1]}
41... Bxf5 {[%clk 0:00:15.7]} 42. Be4 {[%clk 0:00:18.2]} 42... Kg6 {[%clk
0:00:14.5]} 43. Bxf5+ {[%clk 0:00:17.7]} 43... Kxf5 {[%clk 0:00:15]} 44. Rf3+
{[%clk 0:00:18.2]} 44... Ke6 {[%clk 0:00:14.4]} 45. Rf4 {[%clk 0:00:18.6]} 45...
f6 {[%clk 0:00:13.1]} 46. Kf1 {[%clk 0:00:18.6]} 46... g5 {[%clk 0:00:13.3]} 47.
hxg5 {[%clk 0:00:18.3]} 47... fxg5 {[%clk 0:00:14.2]} 48. Rd4 {[%clk 0:00:18.9]}
48... Ke5 {[%clk 0:00:13.6]} 49. Rd8 {[%clk 0:00:17.4]} 49... Rxb4 {[%clk
0:00:12.9]} 50. c6 {[%clk 0:00:16.5]} 50... Rc4 {[%clk 0:00:13.4]} 51. Re8+
{[%clk 0:00:16.9]} 51... Kd6 {[%clk 0:00:13.3]} 52. Rg8 {[%clk 0:00:17.3]} 52...
Rxc6 {[%clk 0:00:09.7]} 53. Rxg5 {[%clk 0:00:17.4]} 53... Rc5 {[%clk 0:00:10.4]}
54. Rg6+ {[%clk 0:00:17.6]} 54... Ke5 {[%clk 0:00:10.8]} 55. Rg5+ {[%clk
0:00:17.2]} 55... Kd4 {[%clk 0:00:11.5]} 56. Rg6 {[%clk 0:00:16.1]} 56... Ke3
{[%clk 0:00:10.6]} 57. Re6+ {[%clk 0:00:15.9]} 57... Kf3 {[%clk 0:00:10.9]} 58.
Rf6+ {[%clk 0:00:14.9]} 58... Kxg3 {[%clk 0:00:11.2]} 59. Ke2 {[%clk 0:00:15]}
59... b4 {[%clk 0:00:10.8]} 60. Rb6 {[%clk 0:00:14.7]} 60... Rc4 {[%clk
0:00:09.9]} 61. Rb5 {[%clk 0:00:14.7]} 61... h4 {[%clk 0:00:09.7]} 62. Rg5+
{[%clk 0:00:15]} 62... Kf4 {[%clk 0:00:08.6]} 63. Rh5 {[%clk 0:00:15]} 63... Kg4
{[%clk 0:00:09.1]} 64. Rb5 {[%clk 0:00:15]} 64... h3 {[%clk 0:00:09.2]} 65. Kf2
{[%clk 0:00:15.6]} 65... h2 {[%clk 0:00:07.8]} 66. Kg2 {[%clk 0:00:15.9]} 66...
Rc2+ {[%clk 0:00:08.5]} 67. Kh1 {[%clk 0:00:16.4]} 67... Rb2 {[%clk 0:00:07.4]}
68. Rb8 {[%clk 0:00:16]} 68... Kf4 {[%clk 0:00:06.5]} 69. Rf8+ {[%clk 0:00:15]}
69... Ke4 {[%clk 0:00:06.8]} 70. Re8+ {[%clk 0:00:14.8]} 70... Kd4 {[%clk
0:00:07.5]} 71. Rd8+ {[%clk 0:00:15.2]} 71... Kc4 {[%clk 0:00:07.9]} 72. Rc8+
{[%clk 0:00:15.7]} 72... Kb3 {[%clk 0:00:08.3]} 73. Ra8 {[%clk 0:00:14.9]} 73...
Rb1+ {[%clk 0:00:07.1]} 74. Kxh2 {[%clk 0:00:14.9]} 74... Kb2 {[%clk 0:00:07.7]}
75. Kg2 {[%clk 0:00:15.2]} 75... b3 {[%clk 0:00:08.6]} 76. Kf2 {[%clk
0:00:15.2]} 76... Rd1 {[%clk 0:00:09.3]} 77. Ke2 {[%clk 0:00:15.3]} 77... Rd7
{[%clk 0:00:09.5]} 78. Rc8 {[%clk 0:00:14.6]} 78... Kb1 {[%clk 0:00:09.5]} 79.
Rb8 {[%clk 0:00:14.5]} 79... b2 {[%clk 0:00:09.7]} 80. Ra8 {[%clk 0:00:14.8]}
80... Rd4 {[%clk 0:00:07.5]} 81. Rb8 {[%clk 0:00:15.7]} 81... Kc1 {[%clk
0:00:06.8]} 82. Ke3 {[%clk 0:00:16.6]} 82... Rd1 {[%clk 0:00:06.7]} 83. Rc8+
{[%clk 0:00:16.2]} 83... Kb1 {[%clk 0:00:07.2]} 84. Rb8 {[%clk 0:00:16.6]} 84...
Rc1 {[%clk 0:00:06.8]} 85. Kd2 {[%clk 0:00:16.9]} 85... Rc7 {[%clk 0:00:06.9]}
86. Rb4 {[%clk 0:00:16.9]} 86... Rd7+ {[%clk 0:00:07]} 87. Ke2 {[%clk
0:00:17.2]} 87... Kc2 {[%clk 0:00:05.2]} 88. Rc4+ {[%clk 0:00:17.3]} 88... Kb3
{[%clk 0:00:05.8]} 89. Rc8 {[%clk 0:00:17.3]} 89... Rd4 {[%clk 0:00:06.1]} 90.
Rb8+ {[%clk 0:00:17.7]} 90... Rb4 {[%clk 0:00:06.7]} 91. Rxb4+ {[%clk
0:00:17.3]} 91... Kxb4 {[%clk 0:00:07.3]} 0-1

[Event "Early-Titled-Tuesday-Blitz-October-17-2023"]
[Site "Chess.com"]
[Date "2023.10.17"]
[Round "10"]
[White "DTChess"]
[Black "Mystery2007"]
[Result "1/2-1/2"]
[WhiteElo "2586"]
[BlackElo "2471"]
[TimeControl "180+1"]
[EndTime "10:01:28 PDT"]
[Termination "Game drawn by repetition"]

1. e4 {[%clk 0:03:00.9]} 1... c5 {[%clk 0:02:59.5]} 2. Nf3 {[%clk 0:03:00.9]}
2... d6 {[%clk 0:02:57.8]} 3. Nc3 {[%clk 0:03:01.2]} 3... Nf6 {[%clk 0:02:57.6]}
4. d4 {[%clk 0:03:01.1]} 4... cxd4 {[%clk 0:02:57.5]} 5. Nxd4 {[%clk 0:03:01.9]}
5... a6 {[%clk 0:02:58.1]} 6. Bc4 {[%clk 0:03:01.8]} 6... e6 {[%clk 0:02:57.1]}
7. Bb3 {[%clk 0:03:00.9]} 7... b5 {[%clk 0:02:57.3]} 8. a3 {[%clk 0:03:00.9]}
8... Be7 {[%clk 0:02:45.8]} 9. f3 {[%clk 0:02:59.9]} 9... Qc7 {[%clk 0:02:44.9]}
10. Be3 {[%clk 0:02:59.5]} 10... O-O {[%clk 0:02:44.3]} 11. Qd2 {[%clk
0:02:59.6]} 11... Bd7 {[%clk 0:02:44.9]} 12. O-O {[%clk 0:02:59.5]} 12... Nc6
{[%clk 0:02:45]} 13. Rfd1 {[%clk 0:02:57.9]} 13... Rfc8 {[%clk 0:02:38.5]} 14.
Rac1 {[%clk 0:02:55]} 14... Ne5 {[%clk 0:02:38.6]} 15. Qf2 {[%clk 0:02:52.7]}
15... Nc4 {[%clk 0:02:34.5]} 16. Bxc4 {[%clk 0:02:52.8]} 16... Qxc4 {[%clk
0:02:30]} 17. Nb3 {[%clk 0:02:52.1]} 17... Qc7 {[%clk 0:02:16.4]} 18. Bf4 {[%clk
0:02:44.6]} 18... e5 {[%clk 0:02:13.6]} 19. Bg5 {[%clk 0:02:40.4]} 19... Be6
{[%clk 0:02:13.1]} 20. Bxf6 {[%clk 0:02:39.3]} 20... Bxf6 {[%clk 0:02:12.4]} 21.
Nd5 {[%clk 0:02:38.8]} 21... Bxd5 {[%clk 0:02:11.8]} 22. Rxd5 {[%clk 0:02:38.4]}
22... Bg5 {[%clk 0:02:11]} 23. Rcd1 {[%clk 0:02:29.2]} 23... Qxc2 {[%clk
0:02:08.6]} 24. Qxc2 {[%clk 0:02:27.6]} 24... Rxc2 {[%clk 0:02:08.6]} 25. Rxd6
{[%clk 0:02:23.3]} 25... Rxb2 {[%clk 0:02:07.6]} 26. Na5 {[%clk 0:02:18.4]}
26... h6 {[%clk 0:02:04]} 27. Nc6 {[%clk 0:02:15.6]} 27... a5 {[%clk 0:01:55.6]}
28. R6d5 {[%clk 0:02:02.8]} 28... Be3+ {[%clk 0:01:47.8]} 29. Kh1 {[%clk
0:02:01.6]} 29... f6 {[%clk 0:01:35.2]} 30. h4 {[%clk 0:01:58]} 30... h5 {[%clk
0:01:27.2]} 31. Ne7+ {[%clk 0:01:57.7]} 31... Kh7 {[%clk 0:01:27.5]} 32. Nf5
{[%clk 0:01:58.2]} 32... Ra7 {[%clk 0:01:23.2]} 33. Nxe3 {[%clk 0:01:57.6]}
33... Rc7 {[%clk 0:01:18.4]} 34. a4 {[%clk 0:01:52.2]} 34... bxa4 {[%clk
0:01:16.6]} 35. Rxa5 {[%clk 0:01:52.3]} 35... Rc3 {[%clk 0:01:12]} 36. Nf5
{[%clk 0:01:49.5]} 36... Rcc2 {[%clk 0:01:06.1]} 37. Ne3 {[%clk 0:01:42.8]}
37... Re2 {[%clk 0:01:05.4]} 38. Rd3 {[%clk 0:01:39.5]} 38... Rb3 {[%clk
0:00:59.8]} 39. Rxb3 {[%clk 0:01:33.8]} 39... axb3 {[%clk 0:01:00.7]} 40. Nc4
{[%clk 0:01:00.2]} 40... Rc2 {[%clk 0:00:56.1]} 41. Rb5 {[%clk 0:00:46.9]} 41...
Rxc4 {[%clk 0:00:49.6]} 42. Rxb3 {[%clk 0:00:47.1]} 42... Kh6 {[%clk 0:00:44.6]}
43. Kh2 {[%clk 0:00:47.2]} 43... Rc1 {[%clk 0:00:39.6]} 44. Kg3 {[%clk 0:00:46]}
44... Kg6 {[%clk 0:00:38.8]} 45. Rb8 {[%clk 0:00:44.8]} 45... Rd1 {[%clk
0:00:37.5]} 46. Rb3 {[%clk 0:00:44.4]} 46... Re1 {[%clk 0:00:36.8]} 47. Kf2
{[%clk 0:00:44.4]} 47... Rh1 {[%clk 0:00:36.6]} 48. g3 {[%clk 0:00:44.8]} 48...
Rh2+ {[%clk 0:00:32.6]} 49. Kg1 {[%clk 0:00:44.9]} 49... Rd2 {[%clk 0:00:29.4]}
50. Rb6 {[%clk 0:00:44.1]} 50... Kh6 {[%clk 0:00:26.6]} 51. Rb3 {[%clk
0:00:41.2]} 51... g5 {[%clk 0:00:24.7]} 52. hxg5+ {[%clk 0:00:39.1]} 52... Kxg5
{[%clk 0:00:23.5]} 53. Rb8 {[%clk 0:00:39.2]} 53... Kg6 {[%clk 0:00:20.5]} 54.
Rg8+ {[%clk 0:00:38.8]} 54... Kf7 {[%clk 0:00:19.1]} 55. Rh8 {[%clk 0:00:39.2]}
55... Kg6 {[%clk 0:00:19.6]} 56. Kf1 {[%clk 0:00:39.1]} 56... Rh2 {[%clk
0:00:17.9]} 57. Kg1 {[%clk 0:00:36.3]} 57... Rd2 {[%clk 0:00:18]} 58. Kh1 {[%clk
0:00:33.7]} 58... Rf2 {[%clk 0:00:17.2]} 59. f4 {[%clk 0:00:30.4]} 59... exf4
{[%clk 0:00:17.1]} 60. gxf4 {[%clk 0:00:31.3]} 60... Rxf4 {[%clk 0:00:17.1]} 61.
Re8 {[%clk 0:00:30.5]} 61... Rf2 {[%clk 0:00:15.8]} 62. Kg1 {[%clk 0:00:30.6]}
62... Re2 {[%clk 0:00:15.9]} 63. Rg8+ {[%clk 0:00:30.1]} 63... Kh6 {[%clk
0:00:14.2]} 64. Rf8 {[%clk 0:00:30]} 64... Kg5 {[%clk 0:00:14.4]} 65. Rg8+
{[%clk 0:00:29.6]} 65... Kf4 {[%clk 0:00:12.4]} 66. Rg6 {[%clk 0:00:29.9]} 66...
Ke5 {[%clk 0:00:09.4]} 67. Rh6 {[%clk 0:00:30.4]} 67... Rxe4 {[%clk 0:00:09]}
68. Rxh5+ {[%clk 0:00:30.9]} 68... f5 {[%clk 0:00:09.6]} 69. Kf2 {[%clk
0:00:31.1]} 69... Rb4 {[%clk 0:00:09.6]} 70. Rh8 {[%clk 0:00:31]} 70... Rb2+
{[%clk 0:00:09.8]} 71. Kf3 {[%clk 0:00:30.9]} 71... Rb3+ {[%clk 0:00:10.5]} 72.
Kf2 {[%clk 0:00:30.8]} 72... Ke4 {[%clk 0:00:11.2]} 73. Re8+ {[%clk 0:00:30]}
73... Kf4 {[%clk 0:00:11.4]} 74. Ra8 {[%clk 0:00:28.7]} 74... Rb2+ {[%clk
0:00:11.5]} 75. Kf1 {[%clk 0:00:29.1]} 75... Kg3 {[%clk 0:00:11.3]} 76. Ra3+
{[%clk 0:00:27.9]} 76... Kg4 {[%clk 0:00:10.6]} 77. Ra8 {[%clk 0:00:27.4]} 77...
f4 {[%clk 0:00:10.3]} 78. Ra3 {[%clk 0:00:26.9]} 78... Kh4 {[%clk 0:00:07]} 79.
Kg1 {[%clk 0:00:26.3]} 79... Kg4 {[%clk 0:00:06.9]} 80. Kf1 {[%clk 0:00:26.6]}
80... Rh2 {[%clk 0:00:06.2]} 81. Kg1 {[%clk 0:00:26.6]} 81... Rc2 {[%clk
0:00:06]} 82. Rb3 {[%clk 0:00:26.6]} 82... f3 {[%clk 0:00:05.8]} 83. Rb8 {[%clk
0:00:26.3]} 83... Rg2+ {[%clk 0:00:04.5]} 84. Kf1 {[%clk 0:00:26.4]} 84... Rc2
{[%clk 0:00:04.2]} 85. Rg8+ {[%clk 0:00:26.4]} 85... Kf4 {[%clk 0:00:03.3]} 86.
Rf8+ {[%clk 0:00:27]} 86... Kg3 {[%clk 0:00:03.8]} 87. Rg8+ {[%clk 0:00:27.5]}
87... Kf4 {[%clk 0:00:04.5]} 88. Rg7 {[%clk 0:00:24.8]} 88... Ke3 {[%clk
0:00:04.8]} 89. Re7+ {[%clk 0:00:24.7]} 89... Kf4 {[%clk 0:00:05.5]} 90. Rf7+
{[%clk 0:00:25.3]} 90... Ke3 {[%clk 0:00:05.8]} 91. Re7+ {[%clk 0:00:25.7]}
91... Kf4 {[%clk 0:00:06.4]} 92. Re8 {[%clk 0:00:26]} 92... Kg3 {[%clk
0:00:06.2]} 93. Rg8+ {[%clk 0:00:25.7]} 93... Kf4 {[%clk 0:00:06.9]} 1/2-1/2